Department Family,Date Paid,Expense Type,Expense Area,Supplier,Transaction Number,Amount,Vat Inclusive
Crown Prosecution Service ,04/04/22,Crown Court Graduated Fee Scheme,Mersey Cheshire Crown Court Unit,St Johns Buildings - 24a - 28 St John Street,1171747 Heath AOB,"34,174.50",Y
Crown Prosecution Service ,04/04/22,Crown Court Graduated Fee Scheme,London North Crown Court Unit,2 Hare Court Chambers -Chambers of Orlando Pownall,118240.,"41,673.00",Y
Crown Prosecution Service ,04/04/22,Crown Court Graduated Fee Scheme,Yorkshire and Humberside Complex Casework Unit,Kings Bench Walk Leeds,118549/jt/BJ,"28,488.90",Y
Crown Prosecution Service ,04/04/22,Crown Court Graduated Fee Scheme,South East Complex Casework Unit,Furnival Chambers,173549 ESM MuirheadC,"31,899.00",Y
Crown Prosecution Service ,04/04/22,Crown Court Graduated Fee Scheme,London South Crown Court Unit,Foundry Chambers (9-12 Bell Yard),188973ND1,"52,767.24",Y
Crown Prosecution Service ,04/04/22,Crown Court Graduated Fee Scheme,London South Crown Court Unit,Foundry Chambers (9-12 Bell Yard),188973ZD,"35,573.76",Y
Crown Prosecution Service ,04/04/22,Crown Court Graduated Fee Scheme,Thames and Chiltern RASSO Unit,23 Essex Street Chambers,191745-MWO-Trial,"33,955.80",Y
Crown Prosecution Service ,04/04/22,Crown Court Graduated Fee Scheme,North East Crown Court Unit,Dere Street Barristers,365330 PM10,"55,069.26",Y
Crown Prosecution Service ,04/04/22,Shared services,Other Corporate Admin Payments,HM Treasury,44315,"54,987.30",
Crown Prosecution Service ,04/04/22,IT services,DTS Programme Project Cost,WIPRO Holdings London,90013109,"37,175.69",Y
Crown Prosecution Service ,04/04/22,Crown Court Graduated Fee Scheme,London North Complex Casework Unit,5 King's Bench Walk,CNQC174486,"27,888.00",Y
Crown Prosecution Service ,04/04/22,Crown Court Graduated Fee Scheme,London North Complex Casework Unit,QEB Hollis Whiteman Chambers,EBQC 109398,"41,863.20",Y
Crown Prosecution Service ,04/04/22,Recoverable VAT control,Balance Sheet,Q A Ltd Leeds,QA-SIN-000121537,"5,000.00",Y
Crown Prosecution Service ,04/04/22,External Training,Operational Performance,Q A Ltd Leeds,QA-SIN-000121537,"25,000.00",
Crown Prosecution Service ,04/04/22,Crown Court Graduated Fee Scheme,West Midlands Complex Casework Unit,QEB Hollis Whiteman Chambers,ZJQC 109334 3,"32,571.00",Y
Crown Prosecution Service ,05/04/22,Reactive Maintenance,Estate and FM: Programme,Government Property Agency London,00000001/17142,"40,704.89",
Crown Prosecution Service ,05/04/22,Recoverable VAT control,Balance Sheet,Government Property Agency London,00000001/17142,"8,140.98",Y
Crown Prosecution Service ,05/04/22,Crown Court Graduated Fee Scheme,London South Complex Casework Unit,5 St Andrew's Hill,174214-1/DSJ,"33,056.60",Y
Crown Prosecution Service ,05/04/22,Crown Court Graduated Fee Scheme,London South Complex Casework Unit,5 St Andrew's Hill,174214-1/KD,"69,334.14",Y
Crown Prosecution Service ,06/04/22,Transcriptions and Translation,Other Corporate Programme Payments,Mendip Media Group Ltd Tiverton,0000000185,"31,778.00",
Crown Prosecution Service ,06/04/22,Recoverable VAT control,Balance Sheet,Mendip Media Group Ltd Tiverton,0000000185,"6,355.60",Y
Crown Prosecution Service ,06/04/22,Crown Court Graduated Fee Scheme,London South Complex Casework Unit,2 Hare Court Chambers -Chambers of Orlando Pownall,113318(5),"44,095.44",Y
Crown Prosecution Service ,06/04/22,Crown Court Graduated Fee Scheme,London South Complex Casework Unit,2 Hare Court Chambers -Chambers of Orlando Pownall,113318(6),"29,662.27",Y
Crown Prosecution Service ,06/04/22,IT non capital software licences,Legal Reference and ICT Licenses,Granicus-Firmstep Ltd London,147963,"37,584.00",Y
Crown Prosecution Service ,06/04/22,Recoverable VAT control,Balance Sheet,CDW Limited London,PSINV03510000,"133,952.00",Y
Crown Prosecution Service ,06/04/22,IT non capital software licences,Legal Reference and ICT Licenses,CDW Limited London,PSINV03510000,"669,760.00",
Crown Prosecution Service ,06/04/22,Recoverable VAT control,Balance Sheet,CDW Limited London,PSINV03512444,"322,157.75",Y
Crown Prosecution Service ,06/04/22,IT non capital software licences,Legal Reference and ICT Licenses,CDW Limited London,PSINV03512444,"1,610,788.74",
Crown Prosecution Service ,06/04/22,IT non capital software licences,Legal Reference and ICT Licenses,CDW Limited London,PSINV03515556,"58,168.67",Y
Crown Prosecution Service ,07/04/22,Crown Court Graduated Fee Scheme,East Midlands Crown Court Section,1 High Pavement Chambers,275926 Waddell PLJ,"27,740.22",Y
Crown Prosecution Service ,08/04/22,Crown Court Graduated Fee Scheme,Yorks and Humbs CC Legal,Kings Bench Walk Leeds,119055/NCQC,"31,587.66",Y
Crown Prosecution Service ,08/04/22,Crown Court Graduated Fee Scheme,Wessex Crown Court Unit,Pump Court Chambers - 3 Pump Court,270644-SFJ,"38,388.60",Y
Crown Prosecution Service ,08/04/22,Crown Court Graduated Fee Scheme,East of England Crown Court,2 Kings Bench Walk London,277917-SHQC,"95,483.40",Y
Crown Prosecution Service ,08/04/22,Other Staff Costs,Operational Security Team,Cabinet Office RM Shared Services,3814511,"28,532.34",Y
Crown Prosecution Service ,08/04/22,Shared services,Operational Security Team,Cabinet Office RM Shared Services,INV3810803,"121,532.40",Y
Crown Prosecution Service ,11/04/22,Crown Court Graduated Fee Scheme,Mersey Cheshire Crown Court Unit,Harrington Street Chambers,1148085/IU,"25,032.60",Y
Crown Prosecution Service ,11/04/22,Crown Court Graduated Fee Scheme,North West Crown Court Hub,Exchange Chambers - Liverpool,608866 - GC,"26,796.60",Y
Crown Prosecution Service ,11/04/22,Recoverable VAT control,Balance Sheet,AVR Transcription Ltd Bolton,MAR22-35695,"10,292.58",Y
Crown Prosecution Service ,11/04/22,Transcriptions and Translation,Other Corporate Programme Payments,AVR Transcription Ltd Bolton,MAR22-35695,"51,462.91",
Crown Prosecution Service ,11/04/22,Crown Court Graduated Fee Scheme,London North Complex Casework Unit,3 Raymond Buildings,WEJ/250902/1,"37,693.08",Y
Crown Prosecution Service ,12/04/22,Recoverable VAT control,Balance Sheet,Trustmarque Solutions Ltd,2339218,"10,265.61",Y
Crown Prosecution Service ,12/04/22,IT non capital software licences,Legal Reference and ICT Licenses,Trustmarque Solutions Ltd,2339218,"51,328.05",
Crown Prosecution Service ,12/04/22,Crown Court Graduated Fee Scheme,London North Crown Court Unit,5 King's Bench Walk,JB 170044 X,"28,925.40",Y
Crown Prosecution Service ,13/04/22,Crown Court Graduated Fee Scheme,West Midlands Complex Casework Unit,6 Kings Bench Walk- Chambers of D Fisher & D Perry,101690 BW2,"63,167.78",Y
Crown Prosecution Service ,13/04/22,Crown Court Graduated Fee Scheme,West Midlands Complex Casework Unit,6 Kings Bench Walk- Chambers of D Fisher & D Perry,101690 DAR,"76,225.56",Y
Crown Prosecution Service ,13/04/22,Crown Court Graduated Fee Scheme,London North Crown Court Unit,2 Hare Court Chambers -Chambers of Orlando Pownall,118240..,"27,778.80",Y
Crown Prosecution Service ,13/04/22,Recoverable VAT control,Balance Sheet,Oracle Corporation UK Ltd,460023700,"4,909.44",Y
Crown Prosecution Service ,13/04/22,IT non capital software licences,Legal Reference and ICT Licenses,Oracle Corporation UK Ltd,460023700,"24,547.18",
Crown Prosecution Service ,13/04/22,IT non capital software licences,Legal Reference and ICT Licenses,Oracle Corporation UK Ltd,460036276,"361,343.62",Y
Crown Prosecution Service ,13/04/22,Crown Court Graduated Fee Scheme,London North Complex Casework Unit,QEB Hollis Whiteman Chambers,JE 108846 1,"56,268.60",Y
Crown Prosecution Service ,13/04/22,Crown Court Graduated Fee Scheme,London North Complex Casework Unit,QEB Hollis Whiteman Chambers,KB 108846 1,"30,917.04",Y
Crown Prosecution Service ,14/04/22,Lease liability non current lease payments,Balance Sheet,Government Property Agency London,00000001/16518,"74,200.00",
Crown Prosecution Service ,14/04/22,Lease liability non current lease payments,Balance Sheet,Government Property Agency London,00000001/16520,"35,100.00",
Crown Prosecution Service ,14/04/22,Lease liability non current lease payments,Balance Sheet,Government Property Agency London,00000001/16523,"50,900.01",
Crown Prosecution Service ,14/04/22,Landlord service charge,Estate and FM: Programme,Government Property Agency London,00000001/16531,"50,122.06",
Crown Prosecution Service ,14/04/22,National non domestic rates,Estate and FM: Programme,Government Property Agency London,00000001/16531,"38,400.00",
Crown Prosecution Service ,14/04/22,Property management fees,Estate and FM: Administration,Government Property Agency London,00000001/16535,"45,828.90",Y
Crown Prosecution Service ,14/04/22,Lease liability non current lease payments,Balance Sheet,Government Property Agency London,00000001/16536,"87,000.00",
Crown Prosecution Service ,14/04/22,Property management fees,Estate and FM: Administration,Government Property Agency London,00000001/16538,"37,342.09",Y
Crown Prosecution Service ,14/04/22,Lease liability non current lease payments,Balance Sheet,Government Property Agency London,00000001/16540,"26,640.00",
Crown Prosecution Service ,14/04/22,Landlord service charge,Estate and FM: Programme,Government Property Agency London,00000001/16542,"30,171.96",
Crown Prosecution Service ,14/04/22,National non domestic rates,Estate and FM: Programme,Government Property Agency London,00000001/16542,"34,880.00",
Crown Prosecution Service ,14/04/22,Lease liability non current lease payments,Balance Sheet,Government Property Agency London,00000001/16547,"66,875.00",
Crown Prosecution Service ,14/04/22,Lease liability non current lease payments,Balance Sheet,Government Property Agency London,00000001/16551,"244,327.50",
Crown Prosecution Service ,14/04/22,Landlord service charge,Estate and FM: Programme,Government Property Agency London,00000001/16552,"17,912.63",
Crown Prosecution Service ,14/04/22,National non domestic rates,Estate and FM: Programme,Government Property Agency London,00000001/16552,"9,280.00",
Crown Prosecution Service ,14/04/22,Property management fees,Estate and FM: Programme,Government Property Agency London,00000001/16556,"74,724.96",Y
Crown Prosecution Service ,14/04/22,Lease liability non current lease payments,Balance Sheet,Government Property Agency London,00000001/16557,"72,484.95",
Crown Prosecution Service ,14/04/22,Lease liability non current lease payments,Balance Sheet,Government Property Agency London,00000001/16561,"1,172,045.12",
Crown Prosecution Service ,14/04/22,Lease liability non current lease payments,Balance Sheet,Government Property Agency London,00000001/16563,"26,746.38",
Crown Prosecution Service ,14/04/22,Lease liability non current lease payments,Balance Sheet,Government Property Agency London,00000001/16565,"28,800.00",
Crown Prosecution Service ,14/04/22,Lease liability non current lease payments,Balance Sheet,Government Property Agency London,00000001/16567,"35,778.15",
Crown Prosecution Service ,14/04/22,Short term leases from 2 to 12 months: Property,Estate and FM: Programme,Government Property Agency London,00000001/16577,"39,900.00",
Crown Prosecution Service ,14/04/22,Short term leases from 2 to 12 months: Property,Estate and FM: Programme,Government Property Agency London,00000001/16579,"57,402.60",
Crown Prosecution Service ,14/04/22,Lease liability non current lease payments,Balance Sheet,Government Property Agency London,00000001/16586,"89,856.60",
Crown Prosecution Service ,14/04/22,Lease liability non current lease payments,Balance Sheet,Government Property Agency London,00000001/16588,"69,372.10",
Crown Prosecution Service ,14/04/22,Landlord service charge,Estate and FM: Administration,Government Property Agency London,00000001/16601,"306,033.20",
Crown Prosecution Service ,14/04/22,Landlord service charge,Estate and FM: Programme,Government Property Agency London,00000001/16601,"1,494,162.05",
Crown Prosecution Service ,14/04/22,National non domestic rates,Estate and FM: Programme,Government Property Agency London,00000001/16601,"411,822.76",
Crown Prosecution Service ,14/04/22,National non domestic rates,Estate and FM: Administration,Government Property Agency London,00000001/16601,"84,349.24",
Crown Prosecution Service ,14/04/22,Lease liability non current lease payments,Balance Sheet,Government Property Agency London,00000001/16605,"32,778.00",
Crown Prosecution Service ,14/04/22,Landlord service charge,Estate and FM: Programme,Government Property Agency London,00000001/16606,"97,060.30",
Crown Prosecution Service ,14/04/22,National non domestic rates,Estate and FM: Programme,Government Property Agency London,00000001/16606,"49,229.78",
Crown Prosecution Service ,14/04/22,IT non capital software licences,Legal Reference and ICT Licenses,Bechtle Direct Ltd Crediton,1024322712,"57,132.65",Y
Crown Prosecution Service ,14/04/22,Crown Court Graduated Fee Scheme,East of England Complex Casework Unit,23 Essex Street Chambers,179137-JAP,"66,267.00",Y
Crown Prosecution Service ,14/04/22,Crown Court Graduated Fee Scheme,East of England Complex Casework Unit,23 Essex Street Chambers,179137-NR,"33,132.00",Y
Crown Prosecution Service ,14/04/22,Crown Court Graduated Fee Scheme,East of England Crown Court,2 Kings Bench Walk London,277917-OW/JH-1,"38,811.60",Y
Crown Prosecution Service ,14/04/22,IT non capital software licences,Legal Reference and ICT Licenses,Lexis Nexis UK,I0495342G,"208,769.00",
Crown Prosecution Service ,14/04/22,Other publicity and media costs,Resourcing,AI Recruitment Technologies Ltd Prescot,INV-Jan22 - 002000,"77,382.00",Y
Crown Prosecution Service ,14/04/22,Crown Court Graduated Fee Scheme,London North Complex Casework Unit,QEB Hollis Whiteman Chambers,PEQC 110045 3,"40,176.00",Y
Crown Prosecution Service ,19/04/22,Landlord service charge,Estate and FM: Programme,Government Property Agency London,00000001/12871,"1,366,657.51",
Crown Prosecution Service ,19/04/22,Landlord service charge,Estate and FM: Administration,Government Property Agency London,00000001/12871,"279,917.80",
Crown Prosecution Service ,19/04/22,National non domestic rates,Estate and FM: Programme,Government Property Agency London,00000001/16589,"25,472.00",
Crown Prosecution Service ,19/04/22,Landlord service charge,Estate and FM: Programme,Government Property Agency London,00000001/16592,"16,347.55",
Crown Prosecution Service ,19/04/22,National non domestic rates,Estate and FM: Programme,Government Property Agency London,00000001/16592,"15,104.00",
Crown Prosecution Service ,19/04/22,Lease liability non current lease payments,Balance Sheet,Government Property Agency London,00000001/16593,"47,000.00",
Crown Prosecution Service ,19/04/22,Lease liability non current lease payments,Balance Sheet,Government Property Agency London,00000001/16612,"51,967.50",
Crown Prosecution Service ,19/04/22,National non domestic rates,Estate and FM: Programme,Government Property Agency London,00000001/16615,"15,744.00",
Crown Prosecution Service ,19/04/22,Landlord service charge,Estate and FM: Programme,Government Property Agency London,00000001/16615,"22,305.61",
Crown Prosecution Service ,19/04/22,Short term leases from 2 to 12 months: Property,Estate and FM: Programme,Government Property Agency London,00000001/16616,"48,123.00",
Crown Prosecution Service ,19/04/22,Short term leases from 2 to 12 months: Property,Estate and FM: Programme,Government Property Agency London,00000001/16621,"156,900.00",
Crown Prosecution Service ,19/04/22,Property management fees,Estate and FM: Programme,Government Property Agency London,00000001/16633,"30,927.93",Y
Crown Prosecution Service ,19/04/22,Property management fees,Estate and FM: Administration,Government Property Agency London,00000001/16633,"6,334.65",Y
Crown Prosecution Service ,19/04/22,Landlord service charge,Estate and FM: Programme,Government Property Agency London,00000001/16635,"71,853.66",
Crown Prosecution Service ,19/04/22,National non domestic rates,Estate and FM: Programme,Government Property Agency London,00000001/16635,"29,440.00",
Crown Prosecution Service ,19/04/22,Lease liability non current lease payments,Balance Sheet,Government Property Agency London,00000001/16640,"210,288.00",
Crown Prosecution Service ,19/04/22,Property management fees,Estate and FM: Programme,Government Property Agency London,00000001/16645,"39,926.52",Y
Crown Prosecution Service ,19/04/22,Lease liability non current lease payments,Balance Sheet,Government Property Agency London,00000001/16646,"80,407.80",
Crown Prosecution Service ,19/04/22,Landlord service charge,Estate and FM: Administration,Government Property Agency London,00000001/16648,"17,917.00",
Crown Prosecution Service ,19/04/22,National non domestic rates,Estate and FM: Administration,Government Property Agency London,00000001/16648,"8,316.16",
Crown Prosecution Service ,19/04/22,Landlord service charge,Estate and FM: Programme,Government Property Agency London,00000001/16648,"17,916.99",
Crown Prosecution Service ,19/04/22,National non domestic rates,Estate and FM: Programme,Government Property Agency London,00000001/16648,"8,316.16",
Crown Prosecution Service ,19/04/22,Property management fees,Estate and FM: Programme,Government Property Agency London,00000001/16651,"45,958.78",Y
Crown Prosecution Service ,19/04/22,Lease liability non current lease payments,Balance Sheet,Government Property Agency London,00000001/16652,"106,451.25",
Crown Prosecution Service ,19/04/22,Accommodation rental costs (non-IFRS16),Estate and FM: Programme,Government Property Agency London,00000001/16658,"25,500.00",
Crown Prosecution Service ,19/04/22,Crown Court Graduated Fee Scheme,London South Complex Casework Unit,Foundry Chambers (9-12 Bell Yard),188789/JGW 1,"28,039.20",Y
Crown Prosecution Service ,19/04/22,IT services,DTS Programme Project Cost,Her Majestys Courts Tribunals Service,2538189,"38,763.36",
Crown Prosecution Service ,19/04/22,IT services,DTS Programme Project Cost,Accenture (UK) Ltd London,3003541714,"50,400.00",Y
Crown Prosecution Service ,19/04/22,Recruitment general costs,Resourcing,Cabinet Office RM Shared Services,3817515,"101,153.88",Y
Crown Prosecution Service ,19/04/22,Apprenticeship Levy payments Permanent,Other Corporate Admin Payments,HM Revenue and Customs,948PB000021422212,"7,161.90",
Crown Prosecution Service ,19/04/22,Apprenticeship Levy payments Permanent,Other Corporate Programme Payments,HM Revenue and Customs,948PB000021422212,"112,203.10",
Crown Prosecution Service ,19/04/22,PAYE payable,Balance Sheet,HM Revenue and Customs,948PB000021422212,"3,590,568.52",
Crown Prosecution Service ,19/04/22,National Insurance payable,Balance Sheet,HM Revenue and Customs,948PB000021422212,"4,453,376.28",
Crown Prosecution Service ,19/04/22,Crown Court Graduated Fee Scheme,London North Complex Casework Unit,QEB Hollis Whiteman Chambers,EBQC 1,"43,396.68",Y
Crown Prosecution Service ,19/04/22,Recoverable VAT control,Balance Sheet,CGI IT UK Ltd,GB014079233,"61,923.06",Y
Crown Prosecution Service ,19/04/22,IT services,Apps and Hosting Contract,CGI IT UK Ltd,GB014079233,"309,615.30",
Crown Prosecution Service ,19/04/22,IT services,DTS Programme Project Cost,ICS.AI Ltd Basingstoke,INV-582,"31,584.30",Y
Crown Prosecution Service ,19/04/22,IT services,DTS Programme Project Cost,eSynergy Solutions Ltd,INV00000526,"96,585.00",Y
Crown Prosecution Service ,19/04/22,IT services,DTS Programme Project Cost,eSynergy Solutions Ltd,INV00000527,"49,920.00",Y
Crown Prosecution Service ,20/04/22,Crown Court Graduated Fee Scheme,SEOC Team 1,5 Paper Buildings,113785/BDJQC,"28,079.51",Y
Crown Prosecution Service ,20/04/22,IT services,Other IT costs,Lumen Technologies UK Ltd,288103627/1079253,"45,600.97",Y
Crown Prosecution Service ,20/04/22,Crown Court Graduated Fee Scheme,East of England Complex Casework Unit,Church Court Chambers,71778SES,"48,814.04",Y
Crown Prosecution Service ,20/04/22,Recoverable VAT control,Balance Sheet,CGI IT UK Ltd,GB014079234,"9,720.34",Y
Crown Prosecution Service ,20/04/22,IT services,Apps and Hosting Contract,CGI IT UK Ltd,GB014079234,"48,601.72",
Crown Prosecution Service ,20/04/22,Other managed/contractor services,DTS Programme Project Cost,Equal Experts London,INV-10221,"128,052.00",Y
Crown Prosecution Service ,21/04/22,Crown Court Graduated Fee Scheme,West Midlands Complex Casework Unit,No 5 Fountain Court Chambers,804654/CO/OP SAR,"46,654.80",Y
Crown Prosecution Service ,22/04/22,Crown Court Graduated Fee Scheme,Yorkshire and Humberside Complex Casework Unit,Kings Bench Walk Leeds,118549/jt/RD,"36,980.82",Y
Crown Prosecution Service ,22/04/22,Crown Court Graduated Fee Scheme,South East Crown Court,6 Pump Court The Chambers of Mr Stephen Hockman,156326/DS1,"49,948.74",Y
Crown Prosecution Service ,22/04/22,Professional subscriptions and memberships,Operational Change,Crimeline Training Ltd Wigan,16467,"41,431.50",Y
Crown Prosecution Service ,22/04/22,Crown Court Graduated Fee Scheme,London South RASSO,Furnival Chambers,171567 RC Pearce,"30,011.40",Y
Crown Prosecution Service ,22/04/22,Crown Court Graduated Fee Scheme,South East Complex Casework Unit,Furnival Chambers,173549 CCA MuirheadC,"58,453.08",Y
Crown Prosecution Service ,22/04/22,Crown Court Graduated Fee Scheme,Thames Chiltern Crown Court Unit,23 Essex Street Chambers,181260-SAMANDHD,"25,236.60",Y
Crown Prosecution Service ,22/04/22,Crown Court Graduated Fee Scheme,London South Complex Casework Unit,Foundry Chambers (9-12 Bell Yard),188789/HP Tr,"41,705.40",Y
Crown Prosecution Service ,22/04/22,Crown Court Graduated Fee Scheme,East of England Complex Casework Unit,36 Bedford Row,215233/WC,"74,376.48",Y
Crown Prosecution Service ,22/04/22,Crown Court Graduated Fee Scheme,Cymru Wales North Crown Court,Apex Chambers,45642-1/PR,"25,136.04",Y
Crown Prosecution Service ,22/04/22,Crown Court Graduated Fee Scheme,Yorkshire and Humberside Complex Casework Unit,Park Square Barristers (No 6 and Sovereign merged),499008/CHQC,"56,228.34",Y
Crown Prosecution Service ,22/04/22,Crown Court Graduated Fee Scheme,Yorkshire and Humberside Complex Casework Unit,Park Square Barristers (No 6 and Sovereign merged),503428/MC1/3,"30,105.24",Y
Crown Prosecution Service ,22/04/22,Salary sacrifice suspense,Balance Sheet,Edenred,INV25596669,"29,646.70",
Crown Prosecution Service ,22/04/22,Other Staff Costs,Finance Operations,Edenred,INV25596669,394.00,
Crown Prosecution Service ,22/04/22,Crown Court Graduated Fee Scheme,London South Complex Casework Unit,9 Gough Chambers London,JCT371158P,"29,002.68",Y
Crown Prosecution Service ,22/04/22,Other Staff Costs,Other Corporate Admin Payments,Reward Gateway (UK) Ltd,UK051661SI,"30,000.00",
Crown Prosecution Service ,25/04/22,Crown Court Graduated Fee Scheme,South East Crown Court,Red Lion Chambers (18 RLC),164499JBN,"45,199.38",Y
Crown Prosecution Service ,25/04/22,Recoverable VAT control,Balance Sheet,Trustmarque Solutions Ltd,2339519,"10,860.61",Y
Crown Prosecution Service ,25/04/22,IT non capital software licences,Legal Reference and ICT Licenses,Trustmarque Solutions Ltd,2339519,"54,303.06",
Crown Prosecution Service ,25/04/22,Recoverable VAT control,Balance Sheet,Lumen Technologies UK Ltd,288105730/1080975a,"23,527.96",Y
Crown Prosecution Service ,25/04/22,IT services,PSN Services Contract,Lumen Technologies UK Ltd,288105730/1080975a,"117,639.82",
Crown Prosecution Service ,25/04/22,IT services,PSN Connectivity Contract,Lumen Technologies UK Ltd,288106877/1080944,"120,033.92",
Crown Prosecution Service ,25/04/22,Recoverable VAT control,Balance Sheet,Lumen Technologies UK Ltd,288106877/1080944,"24,006.78",Y
Crown Prosecution Service ,25/04/22,IT services,DTS Programme Project Cost,Lumen Technologies UK Ltd,288412727/1083459,"33,364.12",Y
Crown Prosecution Service ,25/04/22,Data Communications,PSN Services Contract,Lumen Technologies UK Ltd,288518125/1083618,"32,304.28",Y
Crown Prosecution Service ,25/04/22,Crown Court Graduated Fee Scheme,Thames and Chiltern Complex Casework Unit,2 Kings Bench Walk London,290760-RS,"29,029.32",Y
Crown Prosecution Service ,25/04/22,IT services,DTS Programme Project Cost,Lumen Technologies UK Ltd,430724/1026218/200422,"109,662.38",Y
Crown Prosecution Service ,25/04/22,IT services,Estate and FM: Programme,Lumen Technologies UK Ltd,430724/1026218/200422,"4,325.38",Y
Crown Prosecution Service ,25/04/22,External legal advice - HR casework,PF Litigation,Government Legal Department,508796,"38,965.18",Y
Crown Prosecution Service ,25/04/22,Crown Court Very High Cost Cases Full Scheme,London South Complex Casework Unit,2 Harcourt Buildings,EF/109447 SP4,"27,048.00",Y
Crown Prosecution Service ,25/04/22,Recoverable VAT control,Balance Sheet,CGI IT UK Ltd,GB014078789,"115,623.28",Y
Crown Prosecution Service ,25/04/22,IT services,Apps and Hosting Contract,CGI IT UK Ltd,GB014078789,"578,116.40",
Crown Prosecution Service ,25/04/22,IT services,Service Desk Contract,CGI IT UK Ltd,GB014078810,"36,713.30",
Crown Prosecution Service ,25/04/22,Recoverable VAT control,Balance Sheet,CGI IT UK Ltd,GB014078810,"7,342.66",Y
Crown Prosecution Service ,25/04/22,IT services,DTS Programme Project Cost,CGI IT UK Ltd,GB014079457,"36,551.36",Y
Crown Prosecution Service ,25/04/22,Crown Court Graduated Fee Scheme,London South Complex Casework Unit,9 Gough Chambers London,GXM374700,"53,224.20",Y
Crown Prosecution Service ,25/04/22,IT services,DTS Programme Project Cost,eSynergy Solutions Ltd,INV00000534,"223,920.00",Y
Crown Prosecution Service ,25/04/22,Crown Court Graduated Fee Scheme,London South Complex Casework Unit,9 Gough Chambers London,SHA374700,"35,620.80",Y
Crown Prosecution Service ,26/04/22,Landlord service charge,Estate and FM: Programme,Government Property Agency London,00000001/16627,"35,626.51",
Crown Prosecution Service ,26/04/22,National non domestic rates,Estate and FM: Programme,Government Property Agency London,00000001/16627,"25,479.50",
Crown Prosecution Service ,26/04/22,Recoverable VAT control,Balance Sheet,CGI IT UK Ltd,GB014079828,"4,819.85",Y
Crown Prosecution Service ,26/04/22,IT services,DTS Programme Project Cost,CGI IT UK Ltd,GB014079828,"24,099.27",
Crown Prosecution Service ,26/04/22,Legal Consultancy Advice,Commercial,Reed Talent Solutions London,R40989007M,"74,236.80",Y
Crown Prosecution Service ,27/04/22,Internal Training,PF Prosecution College,Lumesse Limited Luton,2022-0133-UK,"46,477.10",Y
Crown Prosecution Service ,27/04/22,Recoverable VAT control,Balance Sheet,CGI IT UK Ltd,GB014079816,"113,765.31",Y
Crown Prosecution Service ,27/04/22,Intangibles asset purchase clearing CMS,DTS ICT Capital Expenditure,CGI IT UK Ltd,GB014079816,"568,826.57",
Crown Prosecution Service ,27/04/22,Recoverable VAT control,Balance Sheet,CGI IT UK Ltd,GB014079817,"77,781.60",Y
Crown Prosecution Service ,27/04/22,Intangibles asset purchase clearing CMS,DTS ICT Capital Expenditure,CGI IT UK Ltd,GB014079817,"388,908.00",
Crown Prosecution Service ,27/04/22,Recoverable VAT control,Balance Sheet,CGI IT UK Ltd,GB014079821,"144,387.60",Y
Crown Prosecution Service ,27/04/22,Intangibles asset purchase clearing CMS,DTS ICT Capital Expenditure,CGI IT UK Ltd,GB014079821,"721,938.00",
Crown Prosecution Service ,27/04/22,Recoverable VAT control,Balance Sheet,CGI IT UK Ltd,GB014079827,"4,203.90",Y
Crown Prosecution Service ,27/04/22,IT services,DTS Programme Project Cost,CGI IT UK Ltd,GB014079827,"21,019.50",
Crown Prosecution Service ,27/04/22,Crown Court Graduated Fee Scheme,RWD North Unit,3 Raymond Buildings,JH/242488,"56,758.48",Y
Crown Prosecution Service ,27/04/22,Crown Court Graduated Fee Scheme,RWD North Unit,3 Raymond Buildings,LPE/242488,"29,289.54",Y
Crown Prosecution Service ,28/04/22,General Management Consultancy Advice,DTS Programme Project Cost,PA Consulting Services Limited,0000015800,"44,250.00",Y
Crown Prosecution Service ,28/04/22,Crown Court Graduated Fee Scheme,Yorkshire and Humberside Complex Casework Unit,New Park Court Chambers Leeds,362603-3/JG,"35,313.18",Y
Crown Prosecution Service ,28/04/22,External legal advice - Civil litigation,Other Corporate Programme Payments,Government Legal Department,507656,"112,309.76",Y
Crown Prosecution Service ,28/04/22,Recoverable VAT control,Balance Sheet,WIPRO Holdings London,5700000039,"8,464.58",Y
Crown Prosecution Service ,28/04/22,IT services,End User Computing Contract,WIPRO Holdings London,5700000039,"42,322.88",
Crown Prosecution Service ,28/04/22,Recoverable VAT control,Balance Sheet,WIPRO Holdings London,5700000041,"5,481.47",Y
Crown Prosecution Service ,28/04/22,IT services,End User Computing Contract,WIPRO Holdings London,5700000041,"27,407.33",
Crown Prosecution Service ,28/04/22,IT services,End User Computing Contract,WIPRO Holdings London,5700000044,"30,984.60",
Crown Prosecution Service ,28/04/22,Recoverable VAT control,Balance Sheet,WIPRO Holdings London,5700000044,"6,196.92",Y
Crown Prosecution Service ,28/04/22,Crown Court Graduated Fee Scheme,West Midlands Complex Casework Unit,No 5 Fountain Court Chambers,787053/TIM/LAKE2,"37,281.00",Y
Crown Prosecution Service ,29/04/22,Landlord service charge,Estate and FM: Administration,Government Property Agency London,00000001/17472,"1,723.00",
Crown Prosecution Service ,29/04/22,Recoverable VAT control,Balance Sheet,Government Property Agency London,00000001/17472,"2,575.97",Y
Crown Prosecution Service ,29/04/22,Facilities management,Estate and FM: Programme,Government Property Agency London,00000001/17472,"12,879.87",
Crown Prosecution Service ,29/04/22,Landlord service charge,Estate and FM: Programme,Government Property Agency London,00000001/17472,"43,724.74",
Crown Prosecution Service ,29/04/22,Recoverable VAT control,Balance Sheet,Government Property Agency London,00000001/17473,"6,898.61",Y
Crown Prosecution Service ,29/04/22,Reactive Maintenance,Estate and FM: Programme,Government Property Agency London,00000001/17473,"34,183.06",
Crown Prosecution Service ,29/04/22,Reactive Maintenance,Estate and FM: Administration,Government Property Agency London,00000001/17473,310.00,
Crown Prosecution Service ,29/04/22,Recoverable VAT control,Balance Sheet,Government Property Agency London,00000001/17474,"2,668.63",Y
Crown Prosecution Service ,29/04/22,Landlord service charge,Estate and FM: Administration,Government Property Agency London,00000001/17474,"1,488.00",
Crown Prosecution Service ,29/04/22,Facilities management,Estate and FM: Programme,Government Property Agency London,00000001/17474,"13,343.13",
Crown Prosecution Service ,29/04/22,Landlord service charge,Estate and FM: Programme,Government Property Agency London,00000001/17474,"35,430.88",
Crown Prosecution Service ,29/04/22,Crown Court Graduated Fee Scheme,South East Complex Casework Unit,Foundry Chambers (9-12 Bell Yard),191138/HP,"39,911.40",Y
Crown Prosecution Service ,29/04/22,Crown Court Graduated Fee Scheme,South East Complex Casework Unit,Foundry Chambers (9-12 Bell Yard),191138/SMU,"26,436.12",Y
Crown Prosecution Service ,29/04/22,Crown Court Graduated Fee Scheme,London North Crown Court Unit,23 Essex Street Chambers,192928-HF-TRIAL,"29,820.60",Y
Crown Prosecution Service ,29/04/22,Crown Court Very High Cost Cases Full Scheme,North West Crown Court Hub,Lincoln House Chambers,248494 JOA 2,"27,567.00",Y
Crown Prosecution Service ,29/04/22,Crown Court Graduated Fee Scheme,Counter Terrorism Unit: Internal Funding,St Philips Chambers,676138 SD,"36,584.44",Y
Crown Prosecution Service ,29/04/22,IT services,DTS Programme Project Cost,Outsystems LTD London,INVGB202200058,"67,500.00",Y
Crown Prosecution Service ,29/04/22,Crown Court Graduated Fee Scheme,East Midlands Crown Court Section,Seven Bedford Row,jmh kettering,"81,948.36",Y
Crown Prosecution Service ,29/04/22,Crown Court Graduated Fee Scheme,East Midlands Crown Court Section,Seven Bedford Row,kettering 1,"40,626.00",Y
Crown Prosecution Service ,29/04/22,Other publicity and media costs,Press Office,NLA Media Access Limited Kent,Q481135,"47,417.47",Y
